[Event "Live Chess"]
[Site "Chess.com"]
[Date "2023.05.21"]
[Round "-"]
[White "JohanKjeldahl"]
[Black "BillythekidFellowes"]
[Result "1-0"]
[WhiteElo "1910"]
[BlackElo "2029"]
[TimeControl "300"]
[EndTime "1:00:48 PDT"]
[Termination "JohanKjeldahl won by checkmate"]

1. c4 {[%clk 0:04:57.8]} 1... e6 {[%clk 0:04:57.2]} 2. Nc3 {[%clk 0:04:56.3]}
2... d5 {[%clk 0:04:55.8]} 3. d4 {[%clk 0:04:55.3]} 3... Nf6 {[%clk 0:04:55.1]}
4. Nf3 {[%clk 0:04:54.3]} 4... Bb4 {[%clk 0:04:54.1]} 5. Bd2 {[%clk 0:04:52.9]}
5... Nc6 {[%clk 0:04:51.9]} 6. e3 {[%clk 0:04:51.9]} 6... O-O {[%clk 0:04:51.1]}
7. a3 {[%clk 0:04:49.2]} 7... Bxc3 {[%clk 0:04:49.9]} 8. Bxc3 {[%clk 0:04:46.8]}
8... Ne4 {[%clk 0:04:49.4]} 9. Bd3 {[%clk 0:04:45.1]} 9... f5 {[%clk 0:04:48.3]}
10. O-O {[%clk 0:04:42.8]} 10... g5 {[%clk 0:04:45.6]} 11. Nd2 {[%clk
0:04:28.9]} 11... Qe8 {[%clk 0:04:38.3]} 12. f3 {[%clk 0:04:27.6]} 12... Nxc3
{[%clk 0:04:37.3]} 13. bxc3 {[%clk 0:04:25.8]} 13... Ne7 {[%clk 0:04:35.5]} 14.
e4 {[%clk 0:04:21]} 14... dxe4 {[%clk 0:04:30.1]} 15. fxe4 {[%clk 0:04:19.6]}
15... Qg6 {[%clk 0:04:28.3]} 16. exf5 {[%clk 0:04:16.9]} 16... exf5 {[%clk
0:04:27.8]} 17. Nf3 {[%clk 0:04:11.8]} 17... c5 {[%clk 0:04:01.1]} 18. Qe2
{[%clk 0:04:08.9]} 18... Nc6 {[%clk 0:03:56.3]} 19. d5 {[%clk 0:04:07.4]} 19...
Na5 {[%clk 0:03:54.9]} 20. Rae1 {[%clk 0:03:59.1]} 20... Bd7 {[%clk 0:03:53.2]}
21. Ne5 {[%clk 0:03:56.7]} 21... Qg7 {[%clk 0:03:51.9]} 22. Nxd7 {[%clk
0:03:53.6]} 22... Qxd7 {[%clk 0:03:51.8]} 23. Qe6+ {[%clk 0:03:52.2]} 23... Qxe6
{[%clk 0:03:49.4]} 24. Rxe6 {[%clk 0:03:50.4]} 24... f4 {[%clk 0:03:47.7]} 25.
Re7 {[%clk 0:03:47.1]} 25... Rae8 {[%clk 0:03:42.7]} 26. Rfe1 {[%clk 0:03:44.2]}
26... Rxe7 {[%clk 0:03:39.5]} 27. Rxe7 {[%clk 0:03:41.8]} 27... g4 {[%clk
0:03:33.2]} 28. Bxh7+ {[%clk 0:03:33.8]} 28... Kh8 {[%clk 0:03:28.1]} 29. Bd3
{[%clk 0:03:32.4]} 29... f3 {[%clk 0:03:25.9]} 30. Kf2 {[%clk 0:03:27.9]} 30...
fxg2+ {[%clk 0:03:24.1]} 31. Kxg2 {[%clk 0:03:27]} 31... Rf3 {[%clk 0:03:24]}
32. Be2 {[%clk 0:03:15.1]} 32... Rxc3 {[%clk 0:03:22.1]} 33. Bxg4 {[%clk
0:03:13.5]} 33... Nxc4 {[%clk 0:03:21.6]} 34. Be6 {[%clk 0:03:06.6]} 34... Rxa3
{[%clk 0:03:14.3]} 35. Rxb7 {[%clk 0:03:03.8]} 35... a5 {[%clk 0:03:05.7]} 36.
Rc7 {[%clk 0:03:00.7]} 36... Ne3+ {[%clk 0:03:00.8]} 37. Kf2 {[%clk 0:02:56.6]}
37... c4 {[%clk 0:02:54]} 38. d6 {[%clk 0:02:54.9]} 38... Rd3 {[%clk 0:02:53.2]}
39. d7 {[%clk 0:02:52.3]} 39... Nd1+ {[%clk 0:02:52.5]} 40. Ke2 {[%clk
0:02:48.3]} 40... Nc3+ {[%clk 0:02:50.8]} 41. Kf1 {[%clk 0:02:42.2]} 41... a4
{[%clk 0:02:40]} 42. Bxc4 {[%clk 0:02:40.8]} 42... Rd1+ {[%clk 0:02:37.6]} 43.
Kg2 {[%clk 0:02:36]} 43... Rd2+ {[%clk 0:02:36.3]} 44. Kf3 {[%clk 0:02:31.8]}
44... a3 {[%clk 0:02:35.4]} 45. Rc8+ {[%clk 0:02:29.7]} 45... Kg7 {[%clk
0:02:34.3]} 46. d8=Q {[%clk 0:02:28.3]} 46... Rxd8 {[%clk 0:02:32]} 47. Rxd8
{[%clk 0:02:27.3]} 47... a2 {[%clk 0:02:31.3]} 48. Bxa2 {[%clk 0:02:25]} 48...
Nxa2 {[%clk 0:02:31.2]} 49. Kf4 {[%clk 0:02:21.9]} 49... Nb4 {[%clk 0:02:30.1]}
50. Kg5 {[%clk 0:02:18.7]} 50... Nc6 {[%clk 0:02:28.8]} 51. Rd7+ {[%clk
0:02:16.6]} 51... Kg8 {[%clk 0:02:27]} 52. Kf6 {[%clk 0:02:13.7]} 52... Nb4
{[%clk 0:02:25.1]} 53. h4 {[%clk 0:02:12.3]} 53... Nc2 {[%clk 0:02:23.3]} 54. h5
{[%clk 0:02:10.6]} 54... Ne3 {[%clk 0:02:23.2]} 55. h6 {[%clk 0:02:01.8]} 55...
Ng4+ {[%clk 0:02:21.6]} 56. Kg5 {[%clk 0:01:58]} 56... Ne5 {[%clk 0:02:20.1]}
57. Re7 {[%clk 0:01:49.4]} 57... Nc6 {[%clk 0:02:17.3]} 58. Re3 {[%clk
0:01:43.1]} 58... Nb4 {[%clk 0:02:12.3]} 59. Kg6 {[%clk 0:01:38.3]} 59... Kf8
{[%clk 0:02:01.9]} 60. h7 {[%clk 0:01:36.2]} 60... Nd5 {[%clk 0:02:00]} 61.
h8=Q# {[%clk 0:01:33.8]} 1-0

[Event "Live Chess"]
[Site "Chess.com"]
[Date "2023.05.21"]
[Round "-"]
[White "SupremeTactician"]
[Black "f4nomore"]
[Result "1-0"]
[WhiteElo "2284"]
[BlackElo "1405"]
[TimeControl "300"]
[EndTime "1:00:57 PDT"]
[Termination "SupremeTactician won on time"]

1. e4 {[%clk 0:04:59.9]} 1... g6 {[%clk 0:04:58.4]} 2. d4 {[%clk 0:04:59]} 2...
Bg7 {[%clk 0:04:56.9]} 3. Nf3 {[%clk 0:04:58.4]} 3... d6 {[%clk 0:04:55.8]} 4.
c4 {[%clk 0:04:57.6]} 4... Nf6 {[%clk 0:04:53.5]} 5. Nc3 {[%clk 0:04:57.2]} 5...
O-O {[%clk 0:04:51.6]} 6. Be2 {[%clk 0:04:56.5]} 6... Nbd7 {[%clk 0:04:49.8]} 7.
O-O {[%clk 0:04:55.3]} 7... c5 {[%clk 0:04:48.1]} 8. Be3 {[%clk 0:04:54.3]} 8...
cxd4 {[%clk 0:04:43]} 9. Bxd4 {[%clk 0:04:54.2]} 9... b6 {[%clk 0:04:41.5]} 10.
b3 {[%clk 0:04:51.9]} 10... Bb7 {[%clk 0:04:40.4]} 11. Bd3 {[%clk 0:04:50.1]}
11... Nc5 {[%clk 0:04:38.8]} 12. Bxc5 {[%clk 0:04:49]} 12... dxc5 {[%clk
0:04:36.7]} 13. Bc2 {[%clk 0:04:48.4]} 13... Qxd1 {[%clk 0:04:28.2]} 14. Raxd1
{[%clk 0:04:46.9]} 14... Ng4 {[%clk 0:04:25.6]} 15. Nd5 {[%clk 0:04:44.4]} 15...
e6 {[%clk 0:04:14.8]} 16. Nc7 {[%clk 0:04:43.5]} 16... Rad8 {[%clk 0:04:09.4]}
17. Nb5 {[%clk 0:04:38]} 17... a6 {[%clk 0:04:04.2]} 18. Nd6 {[%clk 0:04:36.8]}
18... Ba8 {[%clk 0:03:55.6]} 19. h3 {[%clk 0:04:35.4]} 19... Nf6 {[%clk
0:03:46.4]} 20. e5 {[%clk 0:04:34.6]} 20... Nd7 {[%clk 0:03:42]} 21. Rfe1 {[%clk
0:04:32]} 21... Bxf3 {[%clk 0:03:36.8]} 22. gxf3 {[%clk 0:04:31.9]} 22... Nxe5
{[%clk 0:03:34.6]} 23. Kg2 {[%clk 0:04:29.1]} 23... Nc6 {[%clk 0:03:13.5]} 24.
Ne4 {[%clk 0:04:18.5]} 24... Nd4 {[%clk 0:03:03.2]} 25. Bb1 {[%clk 0:04:12.8]}
25... f5 {[%clk 0:02:55]} 26. Ng5 {[%clk 0:03:49.5]} 26... h6 {[%clk 0:02:28]}
27. Rxd4 {[%clk 0:03:09]} 27... hxg5 {[%clk 0:02:05.2]} 28. Rxd8 {[%clk
0:02:57.4]} 28... Rxd8 {[%clk 0:02:02.1]} 29. Rxe6 {[%clk 0:02:57.1]} 29... Rd2
{[%clk 0:01:58]} 30. Rxg6 {[%clk 0:02:41.8]} 30... Kh7 {[%clk 0:01:54.4]} 31.
Rxg5 {[%clk 0:02:40.5]} 31... Bd4 {[%clk 0:01:48.1]} 32. Rxf5 {[%clk 0:02:39.8]}
32... Rxf2+ {[%clk 0:01:45.6]} 33. Kg3 {[%clk 0:02:36.8]} 33... Rf1 {[%clk
0:01:33.7]} 34. Be4 {[%clk 0:02:31.6]} 34... Rg1+ {[%clk 0:01:26.5]} 35. Kf4
{[%clk 0:02:27]} 35... Kh6 {[%clk 0:01:19]} 36. Rf7 {[%clk 0:02:18.8]} 36... Rg7
{[%clk 0:01:00.3]} 37. Rxg7 {[%clk 0:01:55.1]} 37... Kxg7 {[%clk 0:00:58.4]} 38.
Bb7 {[%clk 0:01:54.3]} 38... a5 {[%clk 0:00:55.8]} 39. Kf5 {[%clk 0:01:53.6]}
39... Bf2 {[%clk 0:00:52.8]} 40. f4 {[%clk 0:01:50.8]} 40... Bh4 {[%clk
0:00:50.3]} 41. Ke6 {[%clk 0:01:49.7]} 41... Bg3 {[%clk 0:00:46.7]} 42. f5
{[%clk 0:01:48.6]} 42... Kf8 {[%clk 0:00:43.3]} 43. Kd7 {[%clk 0:01:45.5]} 43...
Kf7 {[%clk 0:00:39]} 44. Kc6 {[%clk 0:01:44.5]} 44... Kf6 {[%clk 0:00:37.9]} 45.
Kxb6 {[%clk 0:01:43.9]} 45... Kxf5 {[%clk 0:00:36.7]} 46. Kxc5 {[%clk
0:01:43.4]} 46... Be1 {[%clk 0:00:33.4]} 47. Bc8+ {[%clk 0:01:41.6]} 47... Kf6
{[%clk 0:00:28.4]} 48. a3 {[%clk 0:01:40.8]} 48... Ke7 {[%clk 0:00:20.7]} 49. b4
{[%clk 0:01:39.6]} 49... axb4 {[%clk 0:00:16.6]} 50. axb4 {[%clk 0:01:39.5]}
50... Kd8 {[%clk 0:00:14.9]} 51. Bg4 {[%clk 0:01:38.7]} 51... Kc7 {[%clk
0:00:13.1]} 52. b5 {[%clk 0:01:38.6]} 52... Bf2+ {[%clk 0:00:08.8]} 53. Kd5
{[%clk 0:01:38]} 53... Kb6 {[%clk 0:00:06.4]} 54. Bf3 {[%clk 0:01:36.8]} 1-0

[Event "Live Chess"]
[Site "Chess.com"]
[Date "2023.05.21"]
[Round "-"]
[White "MaximKris"]
[Black "JoeyCage"]
[Result "0-1"]
[WhiteElo "1819"]
[BlackElo "2304"]
[TimeControl "300"]
[EndTime "1:01:01 PDT"]
[Termination "JoeyCage won on time"]

1. e4 {[%clk 0:04:58.9]} 1... c5 {[%clk 0:04:56.6]} 2. Nf3 {[%clk 0:04:57.7]}
2... Nc6 {[%clk 0:04:55.2]} 3. Bb5 {[%clk 0:04:55.4]} 3... g6 {[%clk 0:04:53.5]}
4. O-O {[%clk 0:04:53.5]} 4... Bg7 {[%clk 0:04:52.3]} 5. Bxc6 {[%clk 0:04:52.2]}
5... dxc6 {[%clk 0:04:51.1]} 6. c3 {[%clk 0:04:51.8]} 6... Nf6 {[%clk
0:04:49.4]} 7. Re1 {[%clk 0:04:49.2]} 7... c4 {[%clk 0:04:39.6]} 8. b3 {[%clk
0:04:47.4]} 8... cxb3 {[%clk 0:04:31.5]} 9. axb3 {[%clk 0:04:47.3]} 9... O-O
{[%clk 0:04:30]} 10. d4 {[%clk 0:04:46.1]} 10... b6 {[%clk 0:04:22.4]} 11. c4
{[%clk 0:04:42.7]} 11... Bg4 {[%clk 0:04:17.2]} 12. e5 {[%clk 0:04:35.7]} 12...
Nd7 {[%clk 0:04:12.1]} 13. h3 {[%clk 0:04:34.3]} 13... Bxf3 {[%clk 0:04:05.7]}
14. Qxf3 {[%clk 0:04:34.2]} 14... c5 {[%clk 0:03:47.9]} 15. Bb2 {[%clk
0:04:25.7]} 15... cxd4 {[%clk 0:03:45.5]} 16. Bxd4 {[%clk 0:04:25.6]} 16... e6
{[%clk 0:03:40.7]} 17. Nc3 {[%clk 0:04:21]} 17... Nc5 {[%clk 0:03:35]} 18. Bxc5
{[%clk 0:04:16.6]} 18... bxc5 {[%clk 0:03:32.9]} 19. Nb5 {[%clk 0:04:15.3]}
19... Qb6 {[%clk 0:03:30.3]} 20. Rad1 {[%clk 0:04:08.8]} 20... Rfd8 {[%clk
0:03:26]} 21. Rd6 {[%clk 0:03:51.7]} 21... Qa5 {[%clk 0:03:11.6]} 22. Red1
{[%clk 0:03:25.5]} 22... Rab8 {[%clk 0:02:50.5]} 23. Rd7 {[%clk 0:03:00.5]}
23... Rxd7 {[%clk 0:02:47.1]} 24. Rxd7 {[%clk 0:02:58.9]} 24... Qe1+ {[%clk
0:02:30.9]} 25. Kh2 {[%clk 0:02:57.2]} 25... Qxe5+ {[%clk 0:02:29]} 26. g3
{[%clk 0:02:55.6]} 26... Qf6 {[%clk 0:02:27.5]} 27. Qg2 {[%clk 0:02:46.4]} 27...
Qb2 {[%clk 0:02:21.9]} 28. Qf3 {[%clk 0:02:36.4]} 28... Bf6 {[%clk 0:02:05.8]}
29. Rxa7 {[%clk 0:00:48.3]} 29... Rd8 {[%clk 0:01:56]} 30. Ra8 {[%clk
0:00:32.4]} 30... Rxa8 {[%clk 0:01:43]} 31. Qxa8+ {[%clk 0:00:30.6]} 31... Kg7
{[%clk 0:01:42.8]} 32. Qf3 {[%clk 0:00:29.9]} 32... Bd4 {[%clk 0:01:37.6]} 33.
Nxd4 {[%clk 0:00:27.8]} 33... Qxd4 {[%clk 0:01:34.2]} 34. Kg2 {[%clk 0:00:22.6]}
34... e5 {[%clk 0:01:29.8]} 35. Qe3 {[%clk 0:00:21.2]} 35... f5 {[%clk
0:01:23.7]} 36. Qxd4 {[%clk 0:00:18.6]} 36... exd4 {[%clk 0:01:21.7]} 37. Kf3
{[%clk 0:00:18.2]} 37... Kf6 {[%clk 0:01:20.3]} 38. Ke2 {[%clk 0:00:17.8]} 38...
f4 {[%clk 0:01:16.8]} 39. Kd3 {[%clk 0:00:17.7]} 39... fxg3 {[%clk 0:01:15.3]}
40. fxg3 {[%clk 0:00:17.6]} 40... Ke5 {[%clk 0:01:13.6]} 41. h4 {[%clk
0:00:15.7]} 41... h5 {[%clk 0:01:10.2]} 42. Ke2 {[%clk 0:00:14.8]} 42... Ke4
{[%clk 0:01:07.7]} 43. Kd2 {[%clk 0:00:13.9]} 43... Kf3 {[%clk 0:01:03.7]} 44.
b4 {[%clk 0:00:12.2]} 44... cxb4 {[%clk 0:00:55.4]} 45. c5 {[%clk 0:00:11.2]}
45... b3 {[%clk 0:00:54.3]} 46. c6 {[%clk 0:00:11]} 46... b2 {[%clk 0:00:52.7]}
47. Kc2 {[%clk 0:00:10.6]} 47... d3+ {[%clk 0:00:50.8]} 48. Kxb2 {[%clk
0:00:09.3]} 48... d2 {[%clk 0:00:49.8]} 49. c7 {[%clk 0:00:07.7]} 49... d1=Q
{[%clk 0:00:46.3]} 50. c8=Q {[%clk 0:00:07.6]} 50... Qd4+ {[%clk 0:00:39.1]} 51.
Kc2 {[%clk 0:00:06.2]} 51... Qe4+ {[%clk 0:00:36.7]} 52. Kd2 {[%clk 0:00:06.1]}
52... Kxg3 {[%clk 0:00:34.9]} 53. Qc3+ {[%clk 0:00:03.4]} 53... Kxh4 {[%clk
0:00:32]} 54. Qf6+ {[%clk 0:00:02.1]} 54... Kg4 {[%clk 0:00:30.5]} 55. Qf1
{[%clk 0:00:02]} 55... Qf4+ {[%clk 0:00:28.9]} 56. Qxf4+ {[%clk 0:00:01]} 56...
Kxf4 {[%clk 0:00:27.7]} 57. Ke2 {[%clk 0:00:00.9]} 57... Kg3 {[%clk 0:00:27]}
58. Kf1 {[%clk 0:00:00.8]} 58... Kh2 {[%clk 0:00:25.9]} 59. Kf2 {[%clk
0:00:00.1]} 59... g5 {[%clk 0:00:24.9]} 0-1

[Event "Live Chess"]
[Site "Chess.com"]
[Date "2023.05.21"]
[Round "-"]
[White "LiamClery2020"]
[Black "Vitalii18a"]
[Result "1-0"]
[WhiteElo "2020"]
[BlackElo "1105"]
[TimeControl "300"]
[EndTime "1:01:16 PDT"]
[Termination "LiamClery2020 won by checkmate"]

1. e4 {[%clk 0:04:59.3]} 1... e5 {[%clk 0:04:58.5]} 2. Nc3 {[%clk 0:04:58.2]}
2... d6 {[%clk 0:04:54]} 3. d4 {[%clk 0:04:53.4]} 3... exd4 {[%clk 0:04:51.6]}
4. Qxd4 {[%clk 0:04:53.3]} 4... Nf6 {[%clk 0:04:49.7]} 5. Bg5 {[%clk 0:04:50.8]}
5... Be7 {[%clk 0:04:48]} 6. Nf3 {[%clk 0:04:49.6]} 6... O-O {[%clk 0:04:46.8]}
7. O-O-O {[%clk 0:04:48.6]} 7... Nc6 {[%clk 0:04:45.3]} 8. Qd2 {[%clk
0:04:47.7]} 8... Bg4 {[%clk 0:04:39.3]} 9. Be2 {[%clk 0:04:45.6]} 9... Bh5
{[%clk 0:04:35.3]} 10. Rhe1 {[%clk 0:04:39.9]} 10... a5 {[%clk 0:04:15.5]} 11.
Bxf6 {[%clk 0:04:27.3]} 11... Bxf6 {[%clk 0:04:12.6]} 12. Nd5 {[%clk 0:04:26.9]}
12... Bxf3 {[%clk 0:03:57.8]} 13. Bxf3 {[%clk 0:04:23.2]} 13... Bg5 {[%clk
0:03:56.1]} 14. Ne3 {[%clk 0:04:21.4]} 14... f5 {[%clk 0:03:33.9]} 15. exf5
{[%clk 0:04:17.9]} 15... Rxf5 {[%clk 0:03:30]} 16. Kb1 {[%clk 0:04:15.9]} 16...
Rb5 {[%clk 0:03:22.2]} 17. Qd3 {[%clk 0:04:06.6]} 17... Qf6 {[%clk 0:03:19.6]}
18. Qxb5 {[%clk 0:04:04.4]} 18... d5 {[%clk 0:03:01.2]} 19. Bxd5+ {[%clk
0:03:58.6]} 19... Kh8 {[%clk 0:02:59.1]} 20. Bxc6 {[%clk 0:03:57.8]} 20... bxc6
{[%clk 0:02:56.6]} 21. Qf5 {[%clk 0:03:54]} 21... Qe7 {[%clk 0:02:44]} 22. Nd5
{[%clk 0:03:48.7]} 22... Qd6 {[%clk 0:02:18.7]} 23. Qxg5 {[%clk 0:03:47.3]}
23... cxd5 {[%clk 0:02:17]} 24. Qxd5 {[%clk 0:03:44.2]} 24... Qxd5 {[%clk
0:02:06.8]} 25. Rxd5 {[%clk 0:03:44.1]} 25... h6 {[%clk 0:02:06.5]} 26. Re7
{[%clk 0:03:42.3]} 26... Rf8 {[%clk 0:01:51.1]} 27. f3 {[%clk 0:03:40.5]} 27...
Rf6 {[%clk 0:01:44.6]} 28. Rdd7 {[%clk 0:03:38.3]} 28... Rg6 {[%clk 0:01:43.2]}
29. g4 {[%clk 0:03:37.1]} 29... h5 {[%clk 0:01:34.3]} 30. h3 {[%clk 0:03:35.2]}
30... hxg4 {[%clk 0:01:31.4]} 31. hxg4 {[%clk 0:03:34.6]} 31... Kh7 {[%clk
0:01:26.8]} 32. Rxc7 {[%clk 0:03:32.2]} 32... Kh6 {[%clk 0:01:25.2]} 33. Rxg7
{[%clk 0:03:30.4]} 33... Rxg7 {[%clk 0:01:22.9]} 34. Rxg7 {[%clk 0:03:30.3]}
34... Kxg7 {[%clk 0:01:21.7]} 35. c3 {[%clk 0:03:30.2]} 35... Kf6 {[%clk
0:01:20.4]} 36. b4 {[%clk 0:03:30.1]} 36... axb4 {[%clk 0:01:17.7]} 37. cxb4
{[%clk 0:03:30]} 37... Kg5 {[%clk 0:01:10.2]} 38. a4 {[%clk 0:03:29.9]} 38...
Kf4 {[%clk 0:01:08.2]} 39. a5 {[%clk 0:03:29.8]} 39... Kxf3 {[%clk 0:01:06.5]}
40. a6 {[%clk 0:03:29.7]} 40... Ke3 {[%clk 0:01:04.4]} 41. a7 {[%clk 0:03:29.6]}
41... Kf3 {[%clk 0:01:03.2]} 42. a8=Q+ {[%clk 0:03:29.5]} 42... Kg3 {[%clk
0:01:02]} 43. Qc8 {[%clk 0:03:29.4]} 43... Kh4 {[%clk 0:01:00.3]} 44. b5 {[%clk
0:03:29.3]} 44... Kg5 {[%clk 0:00:59]} 45. b6 {[%clk 0:03:29.2]} 45... Kh4
{[%clk 0:00:57.9]} 46. b7 {[%clk 0:03:29.1]} 46... Kg3 {[%clk 0:00:56.8]} 47.
b8=Q+ {[%clk 0:03:29]} 47... Kh4 {[%clk 0:00:55.6]} 48. Qh8+ {[%clk 0:03:28.5]}
48... Kg5 {[%clk 0:00:53.5]} 49. Qg7+ {[%clk 0:03:27.1]} 49... Kh4 {[%clk
0:00:51.7]} 50. Qh2# {[%clk 0:03:26.6]} 1-0

[Event "Live Chess"]
[Site "Chess.com"]
[Date "2023.05.21"]
[Round "-"]
[White "RamsayFlayer"]
[Black "mirandaasilva"]
[Result "0-1"]
[WhiteElo "1970"]
[BlackElo "1657"]
[TimeControl "300"]
[EndTime "1:01:18 PDT"]
[Termination "mirandaasilva won by checkmate"]

1. e4 {[%clk 0:04:59]} 1... c5 {[%clk 0:04:57.8]} 2. c3 {[%clk 0:04:56.7]} 2...
d5 {[%clk 0:04:50.9]} 3. exd5 {[%clk 0:04:55.4]} 3... Qxd5 {[%clk 0:04:50.8]} 4.
d4 {[%clk 0:04:54.8]} 4... Nf6 {[%clk 0:04:43.2]} 5. Nf3 {[%clk 0:04:51.8]} 5...
Bg4 {[%clk 0:04:40.6]} 6. Be2 {[%clk 0:04:49.2]} 6... Nc6 {[%clk 0:04:38.1]} 7.
h3 {[%clk 0:04:47.7]} 7... Bh5 {[%clk 0:04:31.8]} 8. dxc5 {[%clk 0:04:42.5]}
8... Qxd1+ {[%clk 0:04:28.7]} 9. Bxd1 {[%clk 0:04:41]} 9... O-O-O {[%clk
0:04:26.4]} 10. b4 {[%clk 0:04:37.5]} 10... e5 {[%clk 0:04:21.2]} 11. g4 {[%clk
0:04:25]} 11... Bg6 {[%clk 0:04:17.9]} 12. O-O {[%clk 0:04:22.1]} 12... h5
{[%clk 0:04:11.6]} 13. Bg5 {[%clk 0:04:14.5]} 13... hxg4 {[%clk 0:04:08.5]} 14.
hxg4 {[%clk 0:04:11.9]} 14... Be7 {[%clk 0:03:38.4]} 15. Bxf6 {[%clk 0:04:00.8]}
15... gxf6 {[%clk 0:03:27.6]} 16. Bb3 {[%clk 0:03:55.3]} 16... Rd3 {[%clk
0:03:13]} 17. Nfd2 {[%clk 0:03:43.4]} 17... Rdh3 {[%clk 0:03:08.9]} 18. f3
{[%clk 0:02:55]} 18... Bd3 {[%clk 0:03:01.6]} 19. Bxf7 {[%clk 0:02:25.9]} 19...
Bxf1 {[%clk 0:02:07.6]} 20. Kxf1 {[%clk 0:02:22.2]} 20... Rh1+ {[%clk
0:01:59.9]} 21. Kf2 {[%clk 0:02:19.1]} 21... R8h2+ {[%clk 0:01:52.5]} 22. Ke3
{[%clk 0:02:17.8]} 22... Nd8 {[%clk 0:01:37.4]} 23. Bg6 {[%clk 0:02:07.9]} 23...
Kc7 {[%clk 0:01:27]} 24. a4 {[%clk 0:01:42.2]} 24... Ne6 {[%clk 0:01:24.4]} 25.
Ra2 {[%clk 0:01:35.9]} 25... Nf4 {[%clk 0:01:22.5]} 26. Bd3 {[%clk 0:01:28.5]}
26... Re1+ {[%clk 0:01:05.3]} 27. Be2 {[%clk 0:01:19.9]} 27... Rexe2# {[%clk
0:00:58.7]} 0-1

[Event "Live Chess"]
[Site "Chess.com"]
[Date "2023.05.21"]
[Round "-"]
[White "whitedjohn"]
[Black "BJAW87"]
[Result "1-0"]
[WhiteElo "1638"]
[BlackElo "1435"]
[TimeControl "300"]
[EndTime "1:01:42 PDT"]
[Termination "whitedjohn won by resignation"]

1. e4 {[%clk 0:04:56]} 1... c6 {[%clk 0:04:59.4]} 2. d4 {[%clk 0:04:54.3]} 2...
d5 {[%clk 0:04:58.9]} 3. exd5 {[%clk 0:04:53.2]} 3... cxd5 {[%clk 0:04:58.8]} 4.
Bd3 {[%clk 0:04:51.6]} 4... Nc6 {[%clk 0:04:57.5]} 5. c3 {[%clk 0:04:50.3]} 5...
Nf6 {[%clk 0:04:56.9]} 6. Bf4 {[%clk 0:04:48.5]} 6... Qb6 {[%clk 0:04:44.6]} 7.
Qb3 {[%clk 0:04:46.2]} 7... Qxb3 {[%clk 0:04:39.4]} 8. axb3 {[%clk 0:04:45.1]}
8... e6 {[%clk 0:04:38.4]} 9. Nd2 {[%clk 0:04:43.6]} 9... Be7 {[%clk 0:04:31.3]}
10. Ngf3 {[%clk 0:04:42.1]} 10... O-O {[%clk 0:04:30.5]} 11. O-O {[%clk
0:04:40.8]} 11... a6 {[%clk 0:04:28]} 12. b4 {[%clk 0:04:37.3]} 12... b5 {[%clk
0:04:27.2]} 13. Bxb5 {[%clk 0:04:33.5]} 13... Bd7 {[%clk 0:04:16.5]} 14. Bxa6
{[%clk 0:04:28.3]} 14... Rfc8 {[%clk 0:04:10]} 15. Bxc8 {[%clk 0:04:25.9]} 1-0

[Event "Live Chess"]
[Site "Chess.com"]
[Date "2023.05.21"]
[Round "-"]
[White "KeithArkell"]
[Black "OceanFloater"]
[Result "1-0"]
[WhiteElo "2523"]
[BlackElo "1019"]
[TimeControl "300"]
[EndTime "1:01:44 PDT"]
[Termination "KeithArkell won by checkmate"]

1. d4 {[%clk 0:04:55.7]} 1... c6 {[%clk 0:04:58.4]} 2. Nf3 {[%clk 0:04:54.4]}
2... d5 {[%clk 0:04:57.4]} 3. c4 {[%clk 0:04:53.7]} 3... Bf5 {[%clk 0:04:52.6]}
4. e3 {[%clk 0:04:47.5]} 4... e6 {[%clk 0:04:50.1]} 5. Bd3 {[%clk 0:04:46.6]}
5... Bxd3 {[%clk 0:04:48.5]} 6. Qxd3 {[%clk 0:04:45.3]} 6... Nf6 {[%clk
0:04:40.4]} 7. O-O {[%clk 0:04:43.6]} 7... Ne4 {[%clk 0:04:31.3]} 8. Nbd2 {[%clk
0:04:40.2]} 8... Nxd2 {[%clk 0:04:24]} 9. Bxd2 {[%clk 0:04:38.7]} 9... Nd7
{[%clk 0:04:22.1]} 10. a3 {[%clk 0:04:19.1]} 10... c5 {[%clk 0:04:18.6]} 11.
cxd5 {[%clk 0:04:17.6]} 11... exd5 {[%clk 0:04:16.9]} 12. dxc5 {[%clk
0:04:15.2]} 12... Bxc5 {[%clk 0:04:15.3]} 13. Qxd5 {[%clk 0:04:13.6]} 13... Qe7
{[%clk 0:04:09]} 14. Bc3 {[%clk 0:04:09.2]} 14... O-O {[%clk 0:04:05.7]} 15.
Rad1 {[%clk 0:04:04.1]} 15... Nf6 {[%clk 0:04:00.7]} 16. Bxf6 {[%clk 0:04:02.1]}
16... Qxf6 {[%clk 0:03:58.2]} 17. Qxc5 {[%clk 0:04:01]} 17... Rfc8 {[%clk
0:03:53.6]} 18. Qe5 {[%clk 0:03:58.9]} 18... Qc6 {[%clk 0:03:50.1]} 19. Nd4
{[%clk 0:03:56.7]} 19... Qb6 {[%clk 0:03:39.1]} 20. Nf5 {[%clk 0:03:54.5]} 20...
f6 {[%clk 0:03:35.3]} 21. Qe7 {[%clk 0:03:42.8]} 21... Qc7 {[%clk 0:03:18.8]}
22. Rd7 {[%clk 0:03:40.4]} 22... Qxd7 {[%clk 0:03:09.5]} 23. Qxd7 {[%clk
0:03:39.2]} 23... Rc7 {[%clk 0:03:07]} 24. Qxc7 {[%clk 0:03:38.1]} 24... Rf8
{[%clk 0:03:04.7]} 25. Qxg7# {[%clk 0:03:36.9]} 1-0

[Event "Live Chess"]
[Site "Chess.com"]
[Date "2023.05.21"]
[Round "-"]
[White "ranvir123"]
[Black "OleksiyJr1"]
[Result "0-1"]
[WhiteElo "916"]
[BlackElo "972"]
[TimeControl "300"]
[EndTime "1:01:57 PDT"]
[Termination "OleksiyJr1 won by resignation"]

1. e4 {[%clk 0:04:58.2]} 1... c5 {[%clk 0:04:55.6]} 2. Nf3 {[%clk 0:04:57.3]}
2... Nc6 {[%clk 0:04:54.7]} 3. d4 {[%clk 0:04:56.8]} 3... cxd4 {[%clk
0:04:52.5]} 4. Nxd4 {[%clk 0:04:55.7]} 4... Nf6 {[%clk 0:04:51.8]} 5. Nxc6
{[%clk 0:04:53.7]} 5... bxc6 {[%clk 0:04:51.7]} 6. Nc3 {[%clk 0:04:52]} 6... e5
{[%clk 0:04:49.4]} 7. Bg5 {[%clk 0:04:49.3]} 7... Bb4 {[%clk 0:04:47.6]} 8. a3
{[%clk 0:04:46]} 8... Bxc3+ {[%clk 0:04:46]} 9. bxc3 {[%clk 0:04:44.8]} 9... O-O
{[%clk 0:04:42.9]} 10. Bc4 {[%clk 0:04:34.4]} 10... h6 {[%clk 0:04:39.1]} 11.
Bh4 {[%clk 0:04:32]} 11... Bb7 {[%clk 0:04:25.5]} 12. Rb1 {[%clk 0:04:29]} 12...
Rb8 {[%clk 0:04:23.8]} 13. O-O {[%clk 0:04:23.6]} 13... d5 {[%clk 0:04:21.6]}
14. exd5 {[%clk 0:04:21.3]} 14... cxd5 {[%clk 0:04:21.5]} 15. Bxf6 {[%clk
0:04:15.8]} 15... Qxf6 {[%clk 0:04:19.6]} 16. Bxd5 {[%clk 0:04:10.1]} 16... Bxd5
{[%clk 0:04:17.5]} 17. Qxd5 {[%clk 0:04:08.1]} 17... Rxb1 {[%clk 0:04:15.9]} 18.
Rxb1 {[%clk 0:04:05.8]} 18... Rd8 {[%clk 0:04:11.1]} 19. Qe4 {[%clk 0:03:35.6]}
19... Qd6 {[%clk 0:04:00.1]} 20. h3 {[%clk 0:03:31.2]} 20... Qxa3 {[%clk
0:03:57.3]} 21. Qxe5 {[%clk 0:03:21.6]} 21... Qa2 {[%clk 0:03:52.4]} 22. Rc1
{[%clk 0:02:57.2]} 22... a5 {[%clk 0:03:39.4]} 23. c4 {[%clk 0:02:48.2]} 23...
a4 {[%clk 0:03:14.8]} 24. Ra1 {[%clk 0:02:44.6]} 24... Qxc2 {[%clk 0:03:08.7]}
25. Rxa4 {[%clk 0:02:41.6]} 25... Qxa4 {[%clk 0:03:06.2]} 26. Qc5 {[%clk
0:02:38]} 26... Qd1+ {[%clk 0:03:02]} 27. Kh2 {[%clk 0:02:36.1]} 27... Qd6+
{[%clk 0:03:00.5]} 28. Qxd6 {[%clk 0:02:29]} 28... Rxd6 {[%clk 0:03:00.4]} 29.
c5 {[%clk 0:02:28.4]} 29... Rc6 {[%clk 0:02:59.7]} 30. Kg3 {[%clk 0:02:26.8]}
30... Rxc5 {[%clk 0:02:59.6]} 31. Kf4 {[%clk 0:02:25.7]} 31... Rc2 {[%clk
0:02:57.6]} 32. Ke3 {[%clk 0:02:25.3]} 32... f5 {[%clk 0:02:54.6]} 33. Kd3
{[%clk 0:02:24.1]} 0-1